[Event "FISCA IM Round Robin 2022"]
[Site "Cap Aurora"]
[Date "2022.06.22"]
[Round "1.4"]
[White "Sanz Wawer, Daniel"]
[Black "Dev, Shah"]
[Result "0-1"]
[ECO "D11"]
[WhiteElo "2363"]
[BlackElo "2292"]
[Annotator "TA"]
[PlyCount "60"]
[EventDate "2022.06.22"]
[EventType "tourn"]
[EventCountry "ROU"]
[SourceTitle "playchess.com"]
[Source "ChessBase"]
[SourceQuality "1"]
[TimeControl "40/5400+30:900+30"]

{[%evp 9,60,10,19,1,0,-26,1,0,15,12,10,-2,10,13,11,17,38,23,25,20,37,25,55,4,70,65,73,64,86,53,88,22,37,43,123,0,0,0,16,16,16,16,16,-157,-153,-239,0,0,0,-79,0,-1264,-1214]} 1. d4 {[%emt 0:00:04]} d5 {[%emt 0:00:41]} 2. c4 {[%emt 0:00:07]} c6 {[%emt 0:00:09]} 3. Nd2 {[%emt 0:00:08]} Nf6 {[%emt 0:00:34]} 4. Ngf3 {[%emt 0:00:11]} Bf5 {[%emt 0:01:01]} 5. Nh4 {[%emt 0:00:11]} Be4 {[%emt 0:04:12]} 6. e3 {[%emt 0:04:16] D11: Slav Defence: 3 Nf3 sidelines and 3...Nf6 4 e3 Bg4.} e6 {[%emt 0:01:48]} 7. Qb3 {[%emt 0:04:29]} Qc7 {[%emt 0:02:10]} 8. Be2 {[%emt 0:02:29] [#] The position is equal.} Nbd7 $146 {[%emt 0:03:38]} ({Predecessor:} 8... Be7 9. O-O Nbd7 10. Nxe4 dxe4 11. g3 c5 12. Bd2 O-O 13. Rfd1 Rfd8 14. Rac1 Nf8 {0-1 (49) Popov,V (2555)-Yevseev,D (2515) Jurmala 2015}) 9. Nxe4 {[%emt 0:03:01]} Nxe4 {[%emt 0:09:16]} 10. O-O {[%emt 0:02:52]} Be7 {[%emt 0:02:59]} 11. Nf3 {[%emt 0:00:14]} f5 {[%emt 0:05:33]} 12. Nd2 {[%emt 0:05:33]} Nef6 {[%emt 0:01:50]} 13. Qc2 {[%emt 0:01:36]} Rc8 {[%emt 0:05:29]} 14. c5 {[%emt 0:05:48]} O-O {[%emt 0:07:47]} 15. b4 {[%emt 0:00:38]} Ne4 {[%emt 0:12:35]} 16. Nb3 {[%emt 0:14:31]} ({Better is} 16. Nxe4 $14 fxe4 17. Bg4) 16... g5 {[%emt 0:11:56]} (16... Rf6 $1 $11) 17. f3 $14 {[%emt 0:04:28]} Nef6 {[%emt 0:00:08]} 18. Bd2 {[%emt 0:03:55]} Kh8 {[%emt 0:03:16]} 19. a4 {[%emt 0:03:35]} Rg8 {[%emt 0:02:22]} 20. b5 {[%emt 0:05:25]} ({White should try} 20. Be1 $16) 20... cxb5 {[%emt 0:01:37]} 21. axb5 {[%emt 0:01:31] Threatens to win with Qa2.} b6 {[%emt 0:02:12]} (21... Bd6 $1 $14) 22. c6 {[%emt 0:01:17]} (22. Qb2 $1 $16) 22... Bd6 $1 $11 {[%emt 0:01:39]} 23. f4 {[%emt 0:18:06]} Nf8 {[%emt 0:06:33][%cal Bd7f8,Bf8g6,Bg6h4][%mdl 32]} 24. Nc1 {[%emt 0:03:14]} Ne4 {[%emt 0:05:42]} 25. Nd3 $36 {[%emt 0:00:58][%mdl 2048] White fights for an advantage.} gxf4 {[%emt 0:00:08]} 26. Nxf4 {[%emt 0:05:08]} ({White must play} 26. exf4 $11 Qg7 27. Bf3) 26... Qg7 $1 $17 {[%emt 0:02:49] And now ...Bxf4 would win.} 27. g4 {[%emt 0:01:55] [#]} (27. Bf3 $17 Bxf4 28. exf4 Qxd4+ 29. Kh1 Qxd2 30. Bxe4 Rxg2 31. Qxd2 Rxd2 32. Bg2) 27... Bxf4 $2 {[%emt 0:00:37]} ({Black should play} 27... Ng6 $1 $19 {[%cal Rg6f4]} 28. Qd3 (28. Nxe6 $2 Qh6 $19) 28... Qh6) 28. Rxf4 $11 {[%emt 0:01:31]} Ng6 {[%emt 0:03:26] Pair of Knights!} 29. Rff1 {[%emt 0:00:05] [#]} (29. Rxe4 $1 $11 fxe4 30. Be1) 29... h5 {[%emt 0:00:03]} (29... Qh6 $1 $17 {Strongly threatening ...fxg4.} 30. Rxa7 Rcf8) 30. g5 {[%emt 0:04:16][%mdl 8192]} (30. Be1 $11) 30... Nh4 {[%emt 0:00:41] Weighted Error Value: White=0.57/Black=0.28 (precise)} 0-1

[Event "FISCA IM Round Robin 2022"]
[Site "Cap Aurora"]
[Date "2022.06.22"]
[Round "1.5"]
[White "Antonica, Dragos-Andrei"]
[Black "Cosman, Andreea-Marioara"]
[Result "1-0"]
[ECO "A38"]
[WhiteElo "2355"]
[BlackElo "2120"]
[Annotator "TA"]
[PlyCount "45"]
[EventDate "2022.06.22"]
[EventType "tourn"]
[EventCountry "ROU"]
[SourceTitle "playchess.com"]
[Source "ChessBase"]
[SourceQuality "1"]
[TimeControl "40/5400+30:900+30"]

{[%evp 11,45,33,37,29,28,27,83,82,164,164,156,161,174,181,191,195,497,496,510,502,529,527,604,579,537,516,521,505,952,941,1191,1170,1177,1164,2107,1743]} 1. Nf3 {[%emt 0:00:05]} Nf6 {[%emt 0:00:08]} 2. c4 {[%emt 0:00:12]} c5 {[%emt 0:00:10]} 3. Nc3 {[%emt 0:00:43]} Nc6 {[%emt 0:00:51]} 4. g3 {[%emt 0:00:11]} g6 {[%emt 0:00:06]} 5. Bg2 {[%emt 0:00:17]} e5 {[%emt 0:00:53]} 6. O-O {[%emt 0:01:00]} Bg7 {[%emt 0:00:34]} 7. a3 {[%emt 0:03:13][%cal Ob2b4] A38: Symmetrical English vs ...g6: 4 Bg2 Bg7 5 Nf3 Nf6.} d6 {[%emt 0:01:19]} 8. b4 {[%emt 0:03:08] has lost popularity (8.Rb1).} cxb4 {[%emt 0:03:56]} (8... e4 $11 9. Ne1 (9. Ng5 Ng4 $11) 9... O-O) 9. axb4 $16 {[%emt 0:00:47] [#] White is better.} Nxb4 $146 {[%emt 0:00:27]} (9... e4 $16 {was necessary.}) ({Predecessor:} 9... O-O 10. b5 Ne7 11. Ba3 Be6 12. d3 h6 13. Ne1 Qd7 14. Nc2 Rfd8 15. e4 Nh7 {1-0 (67) Thoma,R (2285)-Jenul,R Austria 1998}) 10. Ba3 $1 $18 {[%emt 0:07:45]} Nc6 {[%emt 0:07:16] [#]} 11. Nb5 $1 {[%emt 0:09:46]} Ne4 {[%emt 0:11:17] [#]} 12. Nxe5 $1 {[%emt 0:18:41][%mdl 512]} Nxe5 {[%emt 0:00:34]} (12... Bxe5 13. Bxe4) 13. Bxe4 {[%emt 0:00:29]} ({But not} 13. Qa4 $6 Bd7 14. Bxe4 O-O $16) 13... Bf8 {[%emt 0:29:36]} (13... Nxc4 {is tougher.} 14. Qa4 Nxa3 15. Nxd6+ Kf8) 14. Qa4 {[%emt 0:05:28][%csl LRa7,LRd6] Nxd6+ is the strong threat. White is clearly winning.} Nc6 {[%emt 0:04:56][%cal Be5c6,Bc6d4,Bd4e2][%mdl 32]} 15. d4 {[%emt 0:02:22] Black must now prevent d5.} Bd7 {[%emt 0:11:23]} 16. Bxd6 {[%emt 0:08:18] aiming for Nc7+.} Nxd4 {[%emt 0:01:49]} 17. Be5 {[%emt 0:09:38]} Nxe2+ {[%emt 0:09:22]} 18. Kh1 {[%emt 0:01:54]} f6 {[%emt 0:02:58]} 19. Bc7 {[%emt 0:05:00]} Qe7 {[%emt 0:06:11]} (19... Qc8 $142 20. Rfe1 Bc5) 20. Bxb7 {[%emt 0:02:22][%cal Be4b7,Bb7c8,Bc8h3][%mdl 32]} Rc8 {[%emt 0:02:27]} 21. Bxc8 {[%emt 0:01:53]} Bc6+ {[%emt 0:00:07]} 22. f3 {[%emt 0:00:06]} Qe4 {[%emt 0:00:09]} 23. Bh3 {[%emt 0:01:11] Black got outplayed after the opening.  Weighted Error Value: White=0.01 (flawless) /Black=0.68} (23. fxe4 $2 {leads to mate.} Bxe4+) 1-0

[Event "FISCA IM Round Robin 2022"]
[Site "Cap Aurora"]
[Date "2022.06.23"]
[Round "2.1"]
[White "Cosma, Ioan"]
[Black "Cosman, Andreea-Marioara"]
[Result "1/2-1/2"]
[ECO "B36"]
[WhiteElo "2394"]
[BlackElo "2120"]
[Annotator "TA"]
[PlyCount "85"]
[EventDate "2022.06.22"]
[EventType "tourn"]
[EventCountry "ROU"]
[SourceTitle "playchess.com"]
[Source "ChessBase"]
[SourceQuality "1"]
[TimeControl "40/5400+30:900+30"]

{[%evp 13,85,43,43,43,54,43,39,20,45,50,58,28,58,39,59,34,39,20,23,14,25,0,15,0,8,0,23,7,55,34,36,36,32,31,26,0,0,0,-5,-5,4,5,8,-7,0,0,0,0,0,0,8,8,22,27,18,14,22,21,22,9,22,7,8,0,0,0,0,0,0,0,0,0,0,0]} 1. Nf3 {[%emt 0:00:13]} c5 {[%emt 0:00:28]} 2. c4 {[%emt 0:00:16]} g6 {[%emt 0:01:25]} 3. d4 {[%emt 0:01:38]} cxd4 {[%emt 0:02:02]} 4. Nxd4 {[%emt 0:00:08]} Nc6 {[%emt 0:00:16]} 5. e4 {[%emt 0:00:36]} Nf6 {[%emt 0:00:23]} 6. Nc3 {[%emt 0:00:21]} Nxd4 {[%emt 0:00:06]} 7. Qxd4 {[%emt 0:00:08]} d6 $1 {[%emt 0:00:03]} 8. Be3 {[%emt 0:01:01] B36: Sicilian: Maroczy Bind: Gurgenidze System.} Bg7 {[%emt 0:00:07]} 9. f3 {[%emt 0:00:09]} Be6 {[%emt 0:01:03]} 10. Qd2 {[%emt 0:01:50] [#] White is slightly better.} Nd7 $146 {[%emt 0:06:24]} ({Predecessor:} 10... Rc8 11. b3 b5 12. Bxa7 Qa5 13. Nxb5 Qxd2+ 14. Kxd2 Nxe4+ 15. fxe4 Bxa1 16. Bd3 Be5 {1-0 (42) Pichot,A (2532)-Iturrizaga Bonelli,E (2624) Chess.com INT 2016}) 11. Rc1 {[%emt 0:07:02]} a5 {[%emt 0:04:59]} 12. Nd5 {[%emt 0:07:20]} Nc5 {[%emt 0:04:53]} 13. Be2 {[%emt 0:05:10]} O-O {[%emt 0:02:48]} 14. O-O {[%emt 0:01:12]} a4 {[%emt 0:06:20]} 15. Bd4 {[%emt 0:07:34]} Bxd5 {[%emt 0:04:46]} 16. Bxg7 {[%emt 0:00:26]} Kxg7 {[%emt 0:00:08]} 17. exd5 {[%emt 0:00:21]} Qb6 {[%emt 0:03:17] [#] Strongly threatening ...Ne4+.} 18. Kh1 {[%emt 0:00:34]} Rfc8 {[%emt 0:06:15]} 19. Rfe1 {[%emt 0:04:51]} Rc7 {[%emt 0:03:27]} 20. Bf1 {[%emt 0:00:48]} Na6 {[%emt 0:07:34]} (20... Kg8 $11) 21. Re4 {[%emt 0:02:48]} Qb4 {[%emt 0:07:12]} 22. Qd4+ {[%emt 0:04:18]} Kg8 {[%emt 0:00:52]} 23. Rce1 {[%emt 0:00:33]} Re8 {[%emt 0:01:26]} 24. h4 {[%emt 0:04:39][%cal Oh4h5]} Nc5 {[%emt 0:02:32]} 25. R4e3 {[%emt 0:03:02]} e5 {[%emt 0:07:17]} 26. dxe6 {[%emt 0:00:33]} Nxe6 {[%emt 0:00:22]} 27. Qf6 {[%emt 0:04:56]} Rc5 {[%emt 0:00:07]} 28. Rd1 {[%emt 0:06:28]} Qb6 {[%emt 0:02:49]} 29. Re4 {[%emt 0:05:01]} Rf5 {[%emt 0:06:09]} 30. Qc3 {[%emt 0:00:31]} Qf2 {[%emt 0:01:17]} 31. Qd2 {[%emt 0:02:06]} (31. b4 {with more complications.} axb3 32. axb3 Rf4 33. Qe1) 31... Qxd2 {[%emt 0:02:35]} 32. Rxd2 {[%emt 0:00:06]} Rd8 {[%emt 0:00:06]} 33. Kg1 {[%emt 0:01:50]} Kf8 {[%emt 0:01:49]} 34. Kf2 {[%emt 0:00:39] The position is equal.} h5 {[%emt 0:00:42]} 35. g3 {[%emt 0:00:40]} d5 {[%emt 0:08:31]} 36. cxd5 {[%emt 0:01:59]} Rfxd5 {[%emt 0:00:05]} 37. Rxd5 {[%emt 0:03:36]} Rxd5 $11 {[%emt 0:00:05][%mdl 4096] Endgame KRB-KRN} 38. Bc4 {[%emt 0:06:26]} Rd2+ {[%emt 0:01:45]} 39. Re2 {[%emt 0:00:26]} Rd6 {[%emt 0:00:17]} 40. Bxe6 {[%emt 0:02:09]} fxe6 {[%emt 0:00:10]} 41. Ke3 {[%emt 0:15:34]} Ke7 {[%emt 0:15:56]} 42. Rc2 {[%emt 0:00:35]} Kf6 {[%emt 0:01:41]} 43. Rc4 {[%emt 0:03:16] Weighted Error Value: White=0.08 (flawless) /Black=0.06 (flawless)} 1/2-1/2

[Event "FISCA IM Round Robin 2022"]
[Site "Cap Aurora"]
[Date "2022.06.23"]
[Round "2.2"]
[White "Dev, Shah"]
[Black "Antonica, Dragos-Andrei"]
[Result "0-1"]
[ECO "E66"]
[WhiteElo "2292"]
[BlackElo "2355"]
[Annotator "TA"]
[PlyCount "72"]
[EventDate "2022.06.22"]
[EventType "tourn"]
[EventCountry "ROU"]
[SourceTitle "playchess.com"]
[Source "ChessBase"]
[SourceQuality "1"]
[TimeControl "40/5400+30:900+30"]

{[%evp 19,72,6,30,-18,14,-11,-28,-32,0,-95,-70,-75,-100,-115,-65,-73,-22,-85,-45,-73,-74,-72,-73,-81,-74,-76,-68,-77,-60,-110,-93,-118,-123,-174,-165,-205,-210,-272,-285,-425,-364,-415,-399,-388,-283,-432,-433,-404,-399,-435,-360,-475,-474,-1186,-1095]} 1. d4 {[%emt 0:02:25]} Nf6 {[%emt 0:00:08]} 2. c4 {[%emt 0:00:05]} g6 {[%emt 0:00:34]} 3. Nc3 {[%emt 0:00:10]} Bg7 {[%emt 0:00:37]} 4. Nf3 {[%emt 0:01:26]} O-O {[%emt 0:00:39]} 5. g3 {[%emt 0:00:06]} d6 {[%emt 0:00:59]} 6. Bg2 {[%emt 0:00:06]} c5 {[%emt 0:01:43]} 7. O-O {[%emt 0:00:56]} Nc6 {[%emt 0:01:04]} 8. d5 {[%emt 0:01:24]} Na5 {[%emt 0:00:26]} 9. Nd2 {[%emt 0:02:04]} e6 {[%emt 0:00:39]} 10. Qc2 {[%emt 0:16:06]} a6 {[%emt 0:05:57]} 11. a4 {[%emt 0:10:30] E66: King's Indian: Fianchetto: 6...c5 7 0-0 Nc6 8 d5.} (11. b3 $142) 11... Re8 {[%emt 0:05:18]} 12. e4 {[%emt 0:16:54]} exd5 {[%emt 0:06:49]} 13. cxd5 {[%emt 0:00:15] [#] Black has an edge.} b5 $146 {[%emt 0:08:06]} ({Predecessor:} 13... Bd7 14. b3 b5 15. axb5 axb5 16. Bb2 h5 17. h3 h4 18. g4 Nh7 19. f4 Bd4+ {½-½ (90) Zohaib Hassan,M (2231)-Perez Perez,G (2153) Benidorm 2017}) 14. Nd1 {[%emt 0:05:42]} (14. axb5 $11 axb5 15. Nxb5) 14... Bd7 {[%emt 0:03:09]} 15. Ne3 {[%emt 0:04:13]} c4 {[%emt 0:06:54]} 16. Ra2 {[%emt 0:10:12]} Rc8 {[%emt 0:06:29]} ({Black should play} 16... bxa4 $17 {...Nb3 is the strong threat.} 17. Nb1 Nb3) 17. axb5 $15 {[%emt 0:03:57]} Bxb5 {[%emt 0:06:20]} ({Black should try} 17... axb5 $17 18. Qb1 h5) 18. Re1 {[%emt 0:01:23]} (18. Bh3 $11 {remains equal.} Rb8 19. Rd1) 18... Nd7 {[%emt 0:03:22][%cal Bf6d7,Bd7c5,Bc5d3][%mdl 32]} 19. Nb1 {[%emt 0:01:46]} Nb3 {[%emt 0:05:21]} 20. Bd2 {[%emt 0:01:50]} Nxd2 {[%emt 0:07:36]} 21. Qxd2 {[%emt 0:00:49]} Nc5 {[%emt 0:02:06]} 22. Nc3 {[%emt 0:01:35]} Nd3 {[%emt 0:03:20]} 23. Rea1 {[%emt 0:01:27]} Qf6 {[%emt 0:03:38][%cal Od3b2]} 24. Ned1 {[%emt 0:01:15]} (24. Ra3 $15) 24... Qd4 {[%emt 0:03:00] 0x0.0022fab77c42dp-1022s more active pieces.} 25. Ra5 {[%emt 0:11:15]} Rb8 {[%emt 0:02:09]} 26. Qe2 {[%emt 0:03:12]} (26. Bf1 $17) 26... f5 $19 {[%emt 0:03:46]} 27. Bh3 {[%emt 0:00:34]} Nc5 {[%emt 0:00:57][%cal Rc5e4]} ({Stronger than} 27... fxe4 28. Be6+ Kh8 29. Nxe4 $15) 28. Ne3 {[%emt 0:01:22]} Nxe4 {[%emt 0:02:23]} 29. Rc1 {[%emt 0:01:27]} (29. R5a3 {was necessary.}) 29... Nc5 {[%emt 0:01:46]} 30. Rd1 {[%emt 0:00:24]} Nd3 {[%emt 0:00:57] Hoping for ...Bh6.} 31. Qf3 {[%emt 0:00:37]} Qf6 {[%emt 0:02:16]} 32. Ra2 {[%emt 0:00:22] [#]} (32. Ra3 $142) 32... Nxb2 $1 {[%emt 0:01:08][%mdl 512]} 33. Rxb2 {[%emt 0:00:02]} Qxc3 {[%emt 0:00:06]} 34. Re2 {[%emt 0:00:02]} Qf6 {[%emt 0:01:29]} 35. Rde1 {[%emt 0:00:19]} c3 {[%emt 0:00:29]} 36. Ng4 {[%emt 0:00:41]} (36. Rc2 $142) 36... fxg4 {[%emt 0:00:39] Weighted Error Value: White=0.61/Black=0.20 (precise)} 0-1

[Event "FISCA IM Round Robin 2022"]
[Site "Cap Aurora"]
[Date "2022.06.23"]
[Round "2.3"]
[White "Srinath, Rao S.V."]
[Black "Sanz Wawer, Daniel"]
[Result "1-0"]
[ECO "B12"]
[WhiteElo "2316"]
[BlackElo "2363"]
[Annotator "TA"]
[PlyCount "97"]
[EventDate "2022.06.22"]
[EventType "tourn"]
[EventCountry "ROU"]
[SourceTitle "playchess.com"]
[Source "ChessBase"]
[SourceQuality "1"]
[TimeControl "40/5400+30:900+30"]

{[%evp 9,97,14,22,31,37,14,19,0,-10,0,25,15,34,-4,33,-42,-36,-48,-34,-71,-69,-69,-72,-74,-10,-39,0,-114,-107,-211,-215,-232,-30,-37,-42,-45,0,0,0,0,0,0,0,0,0,0,0,-12,0,0,0,0,0,0,0,0,0,0,0,-50,0,-44,0,0,0,0,0,-112,-18,-121,-129,-115,0,0,0,-116,0,0,0,0,0,-226,-224,-549,-375,-277,0,0,0,0]} 1. e4 {[%emt 0:00:03]} c6 {[%emt 0:00:05]} 2. d4 {[%emt 0:00:36]} d5 {[%emt 0:00:05]} 3. e5 {[%emt 0:00:04]} c5 {[%emt 0:00:04]} 4. Ne2 {[%emt 0:00:12]} cxd4 {[%emt 0:00:52]} 5. Nxd4 {[%emt 0:00:10]} e6 {[%emt 0:00:04]} 6. f4 {[%emt 0:00:56] B12: Caro-Kann: Advance Variation.} Nc6 {[%emt 0:01:40]} 7. Nc3 {[%emt 0:00:08] Active counter play!} Nge7 {[%emt 0:07:01]} 8. Be3 {[%emt 0:25:19]} Nxd4 {[%emt 0:00:23]} 9. Bxd4 {[%emt 0:00:10] [#]} Nf5 $146 {[%emt 0:04:26]} ({Predecessor:} 9... Nc6 10. Bf2 a6 11. Qg4 Qa5 12. O-O-O b5 13. Kb1 h5 14. Qg3 h4 15. Qg4 Rh6 16. Bxh4 {0-1 (67) Hopman,P-Lieutenant,G Huy 1993}) 10. Bf2 {[%emt 0:15:51]} Bb4 {[%emt 0:03:32]} 11. a3 {[%emt 0:07:58]} Ba5 {[%emt 0:01:20]} (11... Bxc3+ $5 12. bxc3 Qa5 $11) 12. Bb5+ {[%emt 0:19:53]} (12. Bd3 $14) 12... Bd7 $15 {[%emt 0:00:31]} 13. Bxd7+ {[%emt 0:00:55]} Qxd7 {[%emt 0:00:06]} 14. b4 {[%emt 0:01:06]} Bb6 {[%emt 0:03:55]} 15. Bxb6 {[%emt 0:04:53]} axb6 {[%emt 0:00:08]} 16. Qd3 {[%emt 0:00:04]} O-O {[%emt 0:00:57][%cal Bh8f8,Bf8c8,Bc8c4][%mdl 32]} (16... Rc8 $17) 17. O-O {[%emt 0:00:43]} (17. g4 $5 {[%cal Rg4f5]} Ne7 18. O-O $15) 17... Rfc8 {[%emt 0:22:32]} 18. Rf3 {[%emt 0:03:57]} (18. g4 $11 Qc6 19. Nxd5) 18... Rc4 $17 {[%emt 0:04:16]} 19. g4 {[%emt 0:03:53]} (19. Ne2 $17) 19... Nd4 $19 {[%emt 0:21:20] White must now prevent ...Rxc3.} 20. Rh3 {[%emt 0:01:02]} f5 $2 {[%emt 0:01:11]} (20... h6 $19 {[%cal Oc4c3] Threatens to win with ...Rxc3!} 21. Qd2 Qc7) 21. exf6 $1 $11 {[%emt 0:01:00]} gxf6 {[%emt 0:00:29][%cal Oc4c3] Hoping for ...Rxc3!} 22. Ne4 {[%emt 0:01:55]} Ne2+ {[%emt 0:01:53]} 23. Qxe2 {[%emt 0:00:03]} Rxe4 {[%emt 0:00:05]} 24. Re3 {[%emt 0:02:23]} f5 {[%emt 0:04:24]} 25. Kh1 {[%emt 0:02:42]} Kh8 {[%emt 0:08:19]} ({Don't play} 25... Rxf4 26. gxf5 Rxf5 27. Rxe6 $16) 26. gxf5 {[%emt 0:03:27]} exf5 {[%emt 0:00:14]} 27. Rxe4 {[%emt 0:02:16]} dxe4 {[%emt 0:04:54][%mdl 4096] Endgame KQR-KQR} 28. Qe3 {[%emt 0:00:58]} Qg7 {[%emt 0:02:59]} 29. Rg1 {[%emt 0:00:13]} Qf6 {[%emt 0:00:03]} 30. h3 {[%emt 0:01:27]} Rc8 {[%emt 0:02:58] Strongly threatening ...Rc3.} 31. Qb3 {[%emt 0:00:04]} Re8 {[%emt 0:01:49]} 32. Qe3 {[%emt 0:00:05]} Rg8 {[%emt 0:02:16]} 33. Rxg8+ {[%emt 0:00:35]} Kxg8 {[%emt 0:00:05] KQ-KQ} 34. c4 {[%emt 0:00:05]} (34. Qb3+ $11 Kg7 35. Qd5) 34... Kf7 {[%emt 0:01:11]} (34... Qd8 $15) 35. Kg2 {[%emt 0:00:33]} Ke7 {[%emt 0:01:00]} 36. Kg3 {[%emt 0:00:45]} Kd7 {[%emt 0:00:34]} 37. Qd2+ $1 {[%emt 0:00:55]} Kc7 {[%emt 0:00:34]} 38. a4 {[%emt 0:00:38]} (38. Qd5 $1 $11 {keeps the balance.}) 38... Kb8 {[%emt 0:00:26]} (38... Qa1 $17 39. Kh4 Qxa4) 39. c5 {[%emt 0:00:36]} (39. a5 $11) 39... bxc5 $17 {[%emt 0:00:23]} 40. bxc5 {[%emt 0:00:04] [#]} Kc7 {[%emt 0:00:44]} (40... Qg7+ $1 $17 41. Kf2 Qc7) 41. Qa5+ $11 {[%emt 0:15:07]} Kb8 {[%emt 0:15:09]} (41... Kd7 $11) 42. Qd2 $17 {[%emt 0:00:06] [#]} Kc8 {[%emt 0:00:54]} ({Black should play} 42... Qg7+ $1 $17 43. Kf2 Qc7) 43. Qd5 $1 $11 {[%emt 0:01:55]} Qg7+ {[%emt 0:00:12]} 44. Kf2 {[%emt 0:00:56]} Qd7 {[%emt 0:00:06]} 45. Qg8+ {[%emt 0:00:42]} (45. Qe5 $1 $11) 45... Kc7 $19 {[%emt 0:00:05] ...Qd2+ is the strong threat.} 46. Kg3 $2 {[%emt 0:00:29]} (46. Qg5 {is a better chance.}) 46... Kc6 {[%emt 0:00:45]} 47. Qf8 {[%emt 0:00:28]} e3 $2 {[%emt 0:01:16]} ({Better is} 47... Qd3+ $19 48. Kh4 e3) 48. Qf6+ $11 {[%emt 0:00:31]} Kxc5 {[%emt 0:00:24]} 49. Qc3+ {[%emt 0:00:03][%mdl 32768] Weighted Error Value: White=0.38/Black=0.39. Loss on time!?} 1-0

[Event "FISCA IM Round Robin 2022"]
[Site "Cap Aurora"]
[Date "2022.06.23"]
[Round "2.4"]
[White "Buzbuchi, Ionut"]
[Black "Voiteanu, Gabriel"]
[Result "0-1"]
[ECO "A09"]
[WhiteElo "2301"]
[BlackElo "2189"]
[Annotator "ChessBase"]
[PlyCount "64"]
[EventDate "2022.06.22"]
[EventType "tourn"]
[EventCountry "ROU"]
[SourceTitle "playchess.com"]
[Source "ChessBase"]
[SourceQuality "1"]
[TimeControl "40/5400+30:900+30"]

1. Nf3 {[%emt 0:00:30]} Nf6 {[%emt 0:00:30]} 2. g3 {[%emt 0:00:30]} d5 {[%emt 0:00:30]} 3. Bg2 {[%emt 0:00:30]} c5 {[%emt 0:00:30]} 4. O-O {[%emt 0:00:30]} Nc6 {[%emt 0:00:30]} 5. c4 {[%emt 0:00:30]} d4 {[%emt 0:00:30]} 6. d3 {[%emt 0:00:30]} g6 {[%emt 0:00:30]} 7. e3 {[%emt 0:00:30]} Bg7 {[%emt 0:00:30]} 8. exd4 {[%emt 0:00:30]} cxd4 {[%emt 0:00:30]} 9. a3 {[%emt 0:00:30]} a5 {[%emt 0:00:30]} 10. Re1 {[%emt 0:00:00]} O-O {[%emt 0:00:00]} 11. Ne5 {[%emt 0:00:00]} Nxe5 {[%emt 0:00:24]} 12. Rxe5 {[%emt 0:00:00]} Nd7 {[%emt 0:01:49]} 13. Rb5 {[%emt 0:00:00]} Qc7 {[%emt 0:00:44]} 14. Nd2 {[%emt 0:00:05]} Ra7 {[%emt 0:06:27]} 15. Rb1 {[%emt 0:19:19]} b6 {[%emt 0:08:13]} 16. b4 {[%emt 0:11:42]} Ba6 {[%emt 0:01:43]} 17. bxa5 {[%emt 0:00:09]} Bxb5 {[%emt 0:00:55]} 18. axb6 {[%emt 0:00:09]} Ba4 {[%emt 0:12:54]} 19. Qxa4 {[%emt 0:02:37]} Nxb6 {[%emt 0:00:14]} 20. Qc2 {[%emt 0:06:44]} Na4 {[%emt 0:02:45]} 21. Ne4 {[%emt 0:03:39]} Nc3 {[%emt 0:03:27]} 22. Rb3 {[%emt 0:10:22]} Rb8 {[%emt 0:07:13]} 23. Bf4 {[%emt 0:03:10]} e5 {[%emt 0:19:34]} 24. Bd2 {[%emt 0:19:32]} Nxe4 {[%emt 0:06:53]} 25. Bxe4 {[%emt 0:00:06]} Bf8 {[%emt 0:00:25]} 26. Bb4 {[%emt 0:03:50]} Bc5 {[%emt 0:04:19]} 27. h4 {[%emt 0:01:05]} h5 {[%emt 0:01:04]} 28. Bd5 {[%emt 0:03:03]} Kg7 {[%emt 0:04:30]} 29. Kg2 {[%emt 0:03:43]} Ra6 {[%emt 0:01:52]} 30. Bxc5 {[%emt 0:03:25]} Rxb3 {[%emt 0:00:08]} 31. Qxb3 {[%emt 0:00:09]} Qxc5 {[%emt 0:00:03]} 32. Bxf7 {[%emt 0:01:28]} Rb6 {[%emt 0:03:14]} 0-1